bitfinex/quotes_BTCUSD_20250408
["timestamp","ask_amount","ask_price","bid_price","bid_amount"]
[1744073081950,0.004,79392.0,79391.0,0.006]
[1744073082282,0.004,79392.0,79391.0,0.014595]
[1744073082493,0.007,79392.0,79391.0,0.014595]
[1744073082883,0.007,79392.0,79391.0,0.002]
[1744073083289,0.004,79392.0,79391.0,0.002]
[1744073083617,0.004,79392.0,79391.0,0.014595]
[1744073083806,0.004,79392.0,79391.0,0.002]
[1744073084099,0.004,79392.0,79391.0,0.014595]
[1744073084305,0.007,79392.0,79391.0,0.014595]
[1744073084446,0.003,79392.0,79391.0,0.015595]
[1744073084909,0.003,79392.0,79391.0,0.003]
[1744073085755,0.003,79392.0,79391.0,0.015595]
[1744073086388,0.003,79392.0,79391.0,0.003]
[1744073087156,0.003,79392.0,79391.0,0.254917]
[1744073087427,0.003,79392.0,79391.0,0.003]
[1744073087787,0.003,79392.0,79391.0,0.254917]
[1744073088129,0.003,79392.0,79391.0,0.267512]
[1744073088634,0.003,79392.0,79391.0,0.003]
[1744073089645,0.267509,79392.0,79391.0,0.003]
[1744073091492,0.003,79392.0,79391.0,0.015595]
[1744073092112,0.003,79392.0,79391.0,0.003]
[1744073092307,0.267509,79392.0,79391.0,0.003]
[1744073093610,0.003,79392.0,79391.0,0.015595]
[1744073093814,0.003,79392.0,79391.0,0.003]
[1744073093999,0.003,79392.0,79391.0,0.015595]
[1744073094201,0.003,79392.0,79391.0,0.003]
[1744073094400,0.255914,79392.0,79391.0,0.002]
[1744073094857,0.256914,79392.0,79391.0,0.002]
[1744073095160,0.269509,79392.0,79391.0,0.002]
[1744073100468,0.269509,79392.0,79391.0,0.014595]
[1744073100469,0.005,79392.0,79391.0,0.014595]
[1744073100674,0.005,79392.0,79391.0,0.266512]
[1744073100887,0.005,79392.0,79391.0,0.002]
[1744073101411,0.005,79392.0,79391.0,0.014595]
[1744073101574,0.003,79392.0,79391.0,0.002]
[1744073101768,0.003,79392.0,79391.0,0.003]
[1744073102023,0.015595,79392.0,79391.0,0.003]
[1744073104106,0.012596,79384.0,79383.0,0.000336]
[1744073104224,0.53396455,79384.0,79383.0,0.000336]
[1744073104582,0.87396455,79384.0,79383.0,0.000336]
[1744073105732,0.88296455,79384.0,79383.0,0.001336]
[1744073106753,0.1345,79384.0,79383.0,0.001336]
[1744073106979,0.1435,79384.0,79383.0,0.013933]
[1744073107139,0.018,79384.0,79383.0,0.013933]
[1744073107493,0.009,79384.0,79383.0,0.001336]
[1744073107671,0.264513,79391.0,79383.0,0.012933]
[1744073107868,0.012595,79391.0,79385.0,0.012596]
[1744073108071,0.030596,79384.0,79383.0,0.001336]
[1744073108329,0.1599847,79384.0,79383.0,0.001336]
[1744073108465,0.17452555,79384.0,79383.0,0.001336]
[1744073108671,0.17452555,79384.0,79383.0,0.005336]
[1744073108672,0.1473887,79384.0,79383.0,0.005336]
[1744073108874,0.018,79384.0,79383.0,0.017933]
[1744073109075,0.009,79384.0,79383.0,0.004336]
[1744073109275,0.021596,79384.0,79383.0,0.005336]
[1744073109481,0.4029237,79384.0,79383.0,0.005336]
[1744073109995,0.40846455,79384.0,79383.0,0.005336]
[1744073111106,0.40846455,79384.0,79383.0,0.000336]
[1744073111419,0.41746455,79384.0,79383.0,0.000336]
[1744073111772,0.41246455,79384.0,79383.0,0.000336]
[1744073111971,0.41846455,79384.0,79383.0,0.001336]
[1744073112171,0.14992955,79384.0,79383.0,0.001336]
[1744073112606,0.40786855,79384.0,79383.0,0.002336]
[1744073113229,0.41486855,79384.0,79383.0,0.002336]
[1744073113648,0.42046455,79384.0,79383.0,0.002336]
[1744073114005,0.42746455,79384.0,79383.0,0.002336]
[1744073116030,0.1483887,79384.0,79383.0,0.002336]
[1744073116188,0.019,79384.0,79383.0,0.014933]
[1744073117841,0.012,79384.0,79383.0,0.013933]
[1744073118140,0.271535,79384.0,79383.0,0.000336]
[1744073119164,0.251933,79386.0,79383.0,0.000336]
[1744073119368,0.138095,79396.0,79384.0,0.012596]
[1744073119545,0.251905,79395.0,79384.0,0.012596]
[1744073119868,0.1255,79396.0,79391.0,0.012595]
[1744073120014,0.26452,79389.0,79385.0,0.0461]
[1744073120215,0.251932,79387.0,79383.0,0.000336]
[1744073120419,0.251936,79385.0,79383.0,0.000336]
[1744073120625,0.012596,79384.0,79383.0,0.000336]
[1744073121146,0.1419847,79384.0,79383.0,0.000336]
[1744073121350,0.15652555,79384.0,79383.0,0.000336]
[1744073121541,0.1419847,79384.0,79383.0,0.000336]
[1744073122359,0.1449847,79384.0,79383.0,0.000336]
[1744073123366,0.1479847,79384.0,79383.0,0.000336]
[1744073123989,0.1449847,79384.0,79383.0,0.000336]
[1744073124201,0.1489847,79384.0,79383.0,0.000336]
[1744073124404,0.3050647,79384.0,79383.0,0.000336]
[1744073125566,0.2924687,79384.0,79383.0,0.000336]
[1744073125934,0.2924687,79384.0,79383.0,0.264876]
[1744073125935,0.16308,79384.0,79383.0,0.264876]
[1744073126149,0.012,79384.0,79383.0,0.264876]
[1744073126368,0.012,79384.0,79383.0,0.000336]
[1744073126520,0.024596,79384.0,79383.0,0.000336]
[1744073126723,0.019596,79384.0,79383.0,0.000336]
[1744073127062,0.1519847,79384.0,79383.0,0.000336]
[1744073127265,0.1449847,79384.0,79383.0,0.000336]
[1744073127439,0.1419847,79384.0,79383.0,0.000336]
[1744073127659,0.1439847,79384.0,79383.0,0.000336]
[1744073127865,0.1469847,79384.0,79383.0,0.000336]
[1744073128264,0.1469847,79384.0,79383.0,0.264876]
[1744073128265,0.006,79384.0,79383.0,0.264876]
[1744073128477,0.004,79384.0,79383.0,0.264876]
[1744073128683,0.008,79384.0,79383.0,0.264876]
[1744073129084,0.004,79384.0,79383.0,0.264876]
[1744073129458,0.004,79384.0,79383.0,0.000336]
[1744073129665,0.1459847,79384.0,79383.0,0.000336]
[1744073129860,0.53802795,79384.0,79383.0,0.000336]
[1744073130254,0.54302795,79384.0,79383.0,0.000336]
[1744073130449,0.54602795,79384.0,79383.0,0.000336]
[1744073130692,0.53902795,79384.0,79383.0,0.000336]
[1744073131152,0.264606,79363.0,79357.0,0.0455]
[1744073131357,0.0126,79362.0,79357.0,0.0455]
[1744073131604,0.0126,79362.0,79356.0,0.41473575]
[1744073132388,0.1419887,79362.0,79356.0,0.0003364]
[1744073132594,0.62252955,79362.0,79356.0,0.0003364]
[1744073132875,0.751935,79362.0,79356.0,0.0003364]
[1744073133120,0.66005375,79362.0,79356.0,0.0003364]
[1744073133466,0.53405375,79362.0,79356.0,0.0003364]
[1744073133666,0.53405375,79362.0,79361.0,0.003]
[1744073133885,0.012605,79333.0,79332.0,0.02]
[1744073134080,0.163685,79333.0,79332.0,0.02]
[1744073135193,0.2804687,79333.0,79332.0,0.021]
[1744073135446,0.2930737,79333.0,79332.0,0.021]
[1744073136308,0.30761455,79333.0,79332.0,0.021]
[1744073136509,0.2804687,79333.0,79332.0,0.021]
[1744073136710,0.2814687,79333.0,79332.0,0.021]
[1744073137584,0.2940737,79333.0,79332.0,0.021]
[1744073138067,0.41499708,79333.0,79332.0,0.021]
[1744073138426,0.30861455,79333.0,79332.0,0.021]
[1744073139244,0.30861455,79333.0,79311.0,0.0003364]
[1744073139245,0.264776,79312.0,79311.0,0.0003364]
[1744073139582,0.6712847,79312.0,79311.0,0.0003364]
[1744073140202,0.68582555,79312.0,79311.0,0.0003364]
[1744073140607,0.4065087,79312.0,79311.0,0.0003364]
[1744073140803,0.27712,79312.0,79310.0,0.252172]
[1744073140977,0.541897,79312.0,79305.0,0.012609]
[1744073141179,0.012609,79304.0,79301.0,0.002]
[1744073143045,0.128,79312.0,79301.0,0.01461]
[1744073143319,0.15116,79308.0,79304.0,0.012609]
[1744073143520,0.252182,79308.0,79302.0,0.264809]
[1744073144244,0.252176,79310.0,79301.0,0.002]
[1744073144444,0.012609,79304.0,79301.0,0.002]
[1744073145125,0.4819977,79304.0,79301.0,0.002]
[1744073145501,0.28037789,79304.0,79301.0,0.002]
[1744073145702,0.14392955,79304.0,79301.0,0.002]
[1744073146023,0.15653855,79304.0,79301.0,0.002]
[1744073146775,0.390803,79304.0,79301.0,0.002]
[1744073148344,0.378194,79304.0,79301.0,0.002]
[1744073148545,0.457624,79304.0,79301.0,0.002]
[1744073148759,0.40534385,79304.0,79301.0,0.002]
[1744073149554,0.126,79304.0,79301.0,0.002]
[1744073149959,0.138609,79304.0,79301.0,0.002]
[1744073153897,0.292489,79304.0,79301.0,0.002]
[1744073155456,0.15388,79304.0,79301.0,0.002]
[1744073155659,0.166489,79304.0,79301.0,0.002]
[1744073161245,0.15388,79304.0,79301.0,0.002]
[1744073161429,0.15388,79304.0,79303.0,0.0129454]
[1744073161591,0.15388,79304.0,79303.0,0.2651424]
[1744073163475,0.3674899,79320.0,79311.0,0.012608]
[1744073163680,0.264759,79317.0,79311.0,0.012608]
[1744073163935,0.264759,79317.0,79305.0,0.012609]
[1744073163936,0.012608,79311.0,79305.0,0.012609]
[1744073164281,0.012608,79314.0,79308.0,0.012609]
[1744073165095,0.001,79311.0,79308.0,0.012609]
[1744073165315,0.001,79311.0,79310.0,0.012608]
[1744073165518,0.001,79311.0,79310.0,0.061108]
[1744073165729,0.15392,79316.0,79315.0,0.012607]
[1744073165928,0.264736,79325.0,79320.0,0.012607]
[1744073166115,1.166047,79321.0,79315.0,0.264766]
[1744073166318,0.252146,79319.0,79313.0,0.012608]
[1744073166517,0.012607,79320.0,79315.0,0.252158]
[1744073167201,1.15344,79321.0,79318.0,0.252149]
[1744073167636,1.418188,79321.0,79315.0,0.264765]
[1744073168093,0.257147,79319.0,79314.0,0.012608]
[1744073168299,0.012607,79318.0,79313.0,0.264772]
[1744073168494,0.252171,79311.0,79310.0,0.0485]
[1744073168794,0.012608,79310.0,79303.0,0.0129454]
[1744073168994,0.252179,79309.0,79304.0,0.252194]
[1744073169195,0.012609,79307.0,79303.0,0.0003364]
[1744073169436,0.264803,79304.0,79303.0,0.0003364]
[1744073169640,0.418683,79304.0,79303.0,0.0003364]
[1744073169988,0.56261255,79304.0,79303.0,0.0003364]
[1744073171662,0.90261255,79304.0,79303.0,0.0003364]
[1744073172562,0.94022546,79304.0,79303.0,0.0003364]
[1744073172758,1.06963091,79304.0,79303.0,0.0003364]
[1744073173915,0.402248,79287.0,79286.0,8e-05]
[1744073174120,0.75032246,79287.0,79286.0,8e-05]
[1744073174792,0.71270955,79287.0,79286.0,8e-05]
[1744073175787,0.71470955,79287.0,79286.0,8e-05]
[1744073176111,0.006,79287.0,79286.0,8e-05]
[1744073176242,0.15992,79287.0,79286.0,8e-05]
[1744073176453,0.172532,79287.0,79286.0,8e-05]
[1744073176871,0.15992,79287.0,79286.0,8e-05]
[1744073177101,0.15592,79287.0,79286.0,0.312343]
[1744073177278,0.005,79287.0,79286.0,0.358443]
[1744073177489,0.003,79287.0,79286.0,0.358443]
[1744073177970,0.001,79287.0,79286.0,0.358443]
[1744073178688,0.15392,79298.0,79297.0,0.264826]
[1744073180398,0.153,79311.0,79306.0,0.264794]
[1744073180734,0.264793,79307.0,79301.0,0.2522]
[1744073180924,0.264793,79307.0,79301.0,0.26481]
[1744073181127,0.264826,79297.0,79296.0,0.41439935]
[1744073181330,0.56175555,79297.0,79296.0,0.41439935]
[1744073181849,0.56175555,79297.0,79296.0,0.38282949]
[1744073183062,0.29692955,79297.0,79296.0,0.38282949]
[1744073183237,0.153,79297.0,79296.0,0.39543949]
[1744073183440,0.153,79297.0,79296.0,0.38282949]
[1744073183647,0.16,79297.0,79296.0,0.38282949]
[1744073184084,0.158,79297.0,79296.0,0.38282949]
[1744073184479,0.163,79297.0,79296.0,0.63504849]
[1744073184681,0.166,79297.0,79296.0,0.264829]
[1744073184915,0.161,79297.0,79296.0,0.264829]
[1744073185122,0.161,79297.0,79290.0,0.0467]
[1744073185123,0.264834,79295.0,79290.0,0.0467]
[1744073185295,0.162,79297.0,79291.0,0.012611]
[1744073185472,0.006,79297.0,79295.0,0.252222]
[1744073185797,0.006,79297.0,79296.0,0.06171]
[1744073185992,0.001,79297.0,79296.0,0.06171]
[1744073186333,0.003,79297.0,79296.0,0.06171]
[1744073186742,0.001,79297.0,79296.0,0.06171]
[1744073187227,0.001,79297.0,79285.0,0.252254]
[1744073187228,0.264846,79291.0,79286.0,0.04918]
[1744073187504,0.26486,79287.0,79286.0,8e-05]
[1744073188914,0.26586,79287.0,79286.0,8e-05]
[1744073190395,0.26686,79287.0,79286.0,8e-05]
[1744073190588,0.26986,79287.0,79286.0,8e-05]
[1744073191412,0.005,79287.0,79286.0,8e-05]
[1744073191718,0.257248,79287.0,79286.0,8e-05]
[1744073191948,0.26986,79287.0,79286.0,8e-05]
[1744073192496,0.005,79287.0,79286.0,8e-05]
[1744073192697,0.005,79287.0,79286.0,0.012692]
[1744073193751,0.153,79290.0,79289.0,0.264853]
[1744073193963,0.2648,79306.0,79300.0,0.252205]
[1744073193964,0.012609,79305.0,79300.0,0.252205]
[1744073194111,0.02714985,79303.0,79298.0,0.01261]
[1744073194314,0.264799,79306.0,79301.0,0.01261]
[1744073194510,0.34,79304.0,79301.0,0.264813]
[1744073194709,0.153,79305.0,79304.0,0.012609]
[1744073195011,0.165609,79305.0,79300.0,0.01261]
[1744073195267,0.153,79305.0,79300.0,0.264816]
[1744073195467,0.153,79305.0,79303.0,0.264803]
[1744073195849,0.153,79305.0,79304.0,0.012609]
[1744073196253,0.153,79305.0,79302.0,0.252199]
[1744073196892,0.153,79305.0,79304.0,0.264803]
[1744073197193,0.157,79305.0,79302.0,0.252199]
[1744073197399,0.163,79305.0,79302.0,0.252199]
[1744073197825,0.167,79305.0,79304.0,0.264803]
[1744073198123,0.157,79305.0,79302.0,0.252199]
[1744073198338,0.421801,79305.0,79295.0,0.264831]
[1744073198541,0.157,79305.0,79304.0,0.264803]
[1744073198747,0.157,79305.0,79301.0,0.01261]
[1744073198878,0.173609,79305.0,79299.0,0.01261]
[1744073199289,0.167,79305.0,79300.0,0.264813]
[1744073199746,0.167,79305.0,79299.0,0.01261]
[1744073199747,0.012611,79293.0,79286.0,0.061892]
[1744073199934,0.252225,79294.0,79286.0,0.04928]
[1744073200175,0.264843,79292.0,79286.0,0.04928]
[1744073200607,0.264843,79292.0,79286.0,8e-05]
[1744073201545,0.265843,79292.0,79286.0,8e-05]
[1744073201882,0.2894284,79292.0,79286.0,8e-05]
[1744073202089,0.0245854,79292.0,79288.0,0.012612]
[1744073202290,0.012611,79290.0,79286.0,8e-05]
[1744073202494,0.001,79292.0,79291.0,0.012611]
[1744073202699,0.004,79292.0,79291.0,0.012611]
[1744073202959,0.004,79292.0,79291.0,0.108111]
[1744073203127,0.001,79292.0,79291.0,0.108111]
[1744073203356,0.153,79297.0,79296.0,0.01261]
[1744073203539,0.153,79297.0,79296.0,0.264829]
[1744073204556,0.11286405,79313.0,79306.0,0.012609]
[1744073204760,0.11286405,79313.0,79303.0,0.012609]
[1744073204761,0.012608,79311.0,79303.0,0.012609]
[1744073204979,0.252175,79310.0,79305.0,0.264797]
[1744073205147,0.153,79312.0,79306.0,0.012609]
[1744073205471,0.153,79312.0,79307.0,0.012609]
[1744073205851,0.252175,79310.0,79305.0,0.012609]
[1744073206049,0.252181,79308.0,79301.0,0.252203]
[1744073206254,0.252181,79308.0,79297.0,0.264825]
[1744073206255,0.252188,79306.0,79297.0,0.264825]
[1744073206461,0.264812,79302.0,79295.0,0.264833]
[1744073206652,0.2522,79302.0,79295.0,0.264833]
[1744073206860,0.012609,79303.0,79296.0,0.01261]
[1744073207056,0.153,79304.0,79302.0,0.01261]
[1744073207257,0.153,79304.0,79303.0,0.012609]
[1744073207482,0.153,79304.0,79302.0,0.264809]
[1744073207683,0.153,79304.0,79302.0,0.01261]
[1744073208075,0.008,79303.0,79302.0,0.264809]
[1744073209116,0.153168,79328.0,79326.0,0.012606]
[1744073209500,0.153168,79328.0,79326.0,0.39543549]
[1744073210342,0.12886405,79327.0,79326.0,0.39543549]
[1744073210961,0.12186405,79327.0,79326.0,0.39543549]
[1744073211118,0.009,79327.0,79326.0,0.38282949]
[1744073211319,0.01,79327.0,79326.0,0.38282949]
[1744073211567,0.01,79327.0,79326.0,0.39543549]
[1744073212534,0.001,79327.0,79326.0,0.39543549]
[1744073213098,0.153168,79328.0,79327.0,0.264726]
[1744073213874,0.000168,79328.0,79327.0,0.264726]
[1744073214598,0.002168,79328.0,79327.0,0.266726]
[1744073215032,0.000168,79328.0,79327.0,0.266726]
[1744073215215,0.000168,79328.0,79327.0,0.3961147]
[1744073215856,0.000168,79328.0,79327.0,0.3941147]
[1744073216112,0.000168,79328.0,79327.0,0.264726]
[1744073216644,0.001168,79328.0,79327.0,0.264726]
[1744073217138,0.001168,79328.0,79326.0,0.39543549]
[1744073217541,0.000168,79328.0,79327.0,0.264726]
[1744073217785,0.001168,79328.0,79327.0,0.267726]
[1744073218221,0.001168,79328.0,79327.0,0.003]
[1744073218400,0.001168,79328.0,79327.0,0.267726]
[1744073219176,0.000168,79328.0,79327.0,0.264726]
[1744073219597,0.001168,79328.0,79327.0,0.264726]
[1744073219795,0.000168,79328.0,79327.0,0.264726]
[1744073220188,0.001168,79328.0,79327.0,0.264726]
[1744073220391,0.001168,79328.0,79327.0,0.267726]
[1744073220570,0.001168,79328.0,79327.0,0.3971147]
[1744073220983,0.001168,79328.0,79327.0,0.003]
[1744073221168,0.001168,79328.0,79327.0,0.015606]
[1744073226688,0.001168,79328.0,79324.0,0.264735]
[1744073227090,0.001168,79328.0,79306.0,0.34]
[1744073227091,0.25214,79321.0,79319.0,0.0492]
[1744073227318,0.012608,79313.0,79307.0,0.0451]
[1744073227435,0.012608,79314.0,79306.0,0.012609]
[1744073227641,0.252178,79309.0,79300.0,0.666605]
[1744073227840,0.012608,79312.0,79306.0,0.012609]
[1744073228302,0.264779,79311.0,79304.0,0.252193]
[1744073228492,0.012609,79308.0,79302.0,0.26481]
[1744073228824,0.02351068,79307.0,79303.0,0.012609]
[1744073229023,0.02351068,79307.0,79304.0,0.264803]
[1744073229350,0.012608,79312.0,79304.0,0.264803]
[1744073229351,0.264771,79314.0,79307.0,0.252184]
[1744073229505,0.264778,79312.0,79307.0,0.012609]
[1744073229713,0.264783,79310.0,79304.0,0.012609]
[1744073229937,0.02351279,79309.0,79304.0,0.264802]
[1744073230156,0.02351279,79308.0,79306.0,0.012609]
[1744073230751,0.02351279,79307.0,79306.0,0.012609]
[1744073231355,0.02351279,79307.0,79306.0,0.264795]
[1744073231594,0.02351279,79307.0,79300.0,0.679215]
[1744073231795,0.02351279,79307.0,79306.0,0.012609]
[1744073232852,0.02351279,79307.0,79306.0,0.001]
[1744073233033,0.252181,79308.0,79306.0,0.001]
[1744073233234,0.012609,79307.0,79306.0,0.001]
[1744073233667,0.36714985,79307.0,79306.0,0.001]
[1744073233867,0.264851,79290.0,79287.0,0.4239084]
[1744073234116,0.012611,79293.0,79287.0,0.0095084]
[1744073234257,0.15484,79296.0,79294.0,0.252225]
[1744073234456,0.15484,79296.0,79294.0,0.264836]
[1744073234661,0.15484,79296.0,79295.0,0.012611]
[1744073234870,0.17838207,79296.0,79295.0,0.012611]
[1744073235266,0.02354207,79296.0,79295.0,0.057611]
[1744073235467,0.02354207,79296.0,79295.0,0.107411]
[1744073236589,0.02454207,79296.0,79295.0,0.2367997]
[1744073236787,0.15484,79306.0,79305.0,0.012609]
[1744073237182,0.15484,79306.0,79305.0,0.264799]
[1744073237683,0.15488,79319.0,79315.0,0.252158]
[1744073237908,0.15488,79319.0,79318.0,0.012607]
[1744073238085,0.15488,79319.0,79315.0,0.252159]
[1744073238307,0.15488,79319.0,79315.0,0.264766]
[1744073238694,0.15488,79319.0,79318.0,0.264756]
[1744073238896,0.15988,79319.0,79318.0,0.264756]
[1744073239296,0.15988,79319.0,79315.0,0.012607]
[1744073239498,0.16388,79319.0,79316.0,0.012607]
[1744073239702,0.15488,79321.0,79320.0,0.012607]
[1744073239901,0.15488,79321.0,79316.0,0.264762]
[1744073240213,0.004,79319.0,79318.0,0.264755]
[1744073240410,0.01,79319.0,79318.0,0.264755]
[1744073240634,0.01,79319.0,79316.0,0.264762]
[1744073241034,0.004,79319.0,79316.0,0.264762]
[1744073241614,0.16188,79321.0,79316.0,0.264762]
[1744073241945,0.16588,79321.0,79316.0,0.264762]
[1744073242373,0.16588,79321.0,79313.0,0.252164]
[1744073242374,0.40738,79321.0,79313.0,0.252164]
[1744073242566,0.255148,79319.0,79312.0,0.012608]
[1744073242776,0.003,79319.0,79316.0,0.001]
[1744073242945,0.008,79319.0,79316.0,0.001]
[1744073243345,0.012607,79320.0,79312.0,0.264773]
[1744073243688,0.252181,79308.0,79302.0,0.01261]
[1744073243987,0.012608,79309.0,79302.0,0.2522]
[1744073244191,0.264787,79309.0,79302.0,0.2522]
[1744073244365,0.264787,79309.0,79301.0,0.01261]
[1744073244550,0.252165,79313.0,79306.0,0.252187]
[1744073244749,0.012608,79313.0,79305.0,0.012609]
[1744073245073,0.01454085,79317.0,79314.0,0.252161]
[1744073245269,0.005,79320.0,79318.0,0.252149]
[1744073245473,0.16024,79320.0,79319.0,0.012607]
[1744073245993,0.15524,79320.0,79319.0,0.012607]
[1744073246206,0.15524,79320.0,79316.0,0.012607]
[1744073246338,0.15524,79320.0,79317.0,0.252152]
[1744073246540,0.15724,79320.0,79319.0,0.264753]
[1744073246781,0.002,79320.0,79319.0,0.264753]
[1744073248219,0.002,79320.0,79319.0,0.3941417]
[1744073249003,0.007,79320.0,79319.0,0.3941417]
[1744073249410,0.000168,79332.0,79331.0,0.264713]
[1744073250546,0.003168,79332.0,79331.0,0.012605]
[1744073250750,0.003168,79332.0,79331.0,0.264713]
[1744073251541,0.003168,79332.0,79328.0,0.012605]
[1744073251712,0.264735,79325.0,79319.0,0.005]
[1744073252062,0.012607,79320.0,79319.0,0.005]
[1744073252445,0.012607,79318.0,79311.0,0.012608]
[1744073252766,0.264759,79318.0,79311.0,0.264776]
[1744073252926,0.012607,79315.0,79309.0,0.252177]
[1744073253132,0.264769,79315.0,79308.0,0.012609]
[1744073253400,0.012607,79315.0,79309.0,0.264786]
[1744073254056,0.012607,79315.0,79311.0,0.002]
[1744073254172,0.012607,79315.0,79308.0,0.264787]
[1744073254371,0.264759,79318.0,79310.0,0.012608]
[1744073254603,0.252153,79317.0,79311.0,0.012608]
[1744073254812,0.252159,79315.0,79309.0,0.012608]
[1744073255023,0.252159,79315.0,79309.0,0.014608]
[1744073255238,0.264783,79310.0,79309.0,0.002]
[1744073255437,0.012608,79313.0,79309.0,0.002]
[1744073255737,0.012607,79316.0,79309.0,0.004]
[1744073255883,0.012608,79312.0,79311.0,0.001]
[1744073256084,0.264776,79312.0,79311.0,0.001]
[1744073256903,0.252175,79310.0,79309.0,0.008]
[1744073257099,0.15524,79310.0,79309.0,0.008]
[1744073257500,0.1788188,79310.0,79309.0,0.008]
[1744073257927,0.15524,79310.0,79309.0,0.020608]
[1744073258108,0.15524,79310.0,79309.0,0.017608]
[1744073258525,0.15524,79310.0,79309.0,0.005]
[1744073258827,0.17881808,79310.0,79307.0,0.012609]
[1744073259203,0.17881808,79310.0,79309.0,0.016608]
[1744073259388,0.15624,79310.0,79309.0,0.01]
[1744073259803,0.15624,79310.0,79309.0,0.006]
[1744073260005,0.15724,79310.0,79309.0,0.270786]
[1744073260212,0.002,79310.0,79309.0,0.270786]
[1744073260567,0.15524,79320.0,79317.0,0.012607]
[1744073260773,0.15524,79320.0,79319.0,0.012607]
[1744073261114,0.15524,79320.0,79318.0,0.252149]
[1744073261323,0.15524,79320.0,79314.0,0.012608]
[1744073261778,0.407383,79320.0,79314.0,0.012608]
[1744073262087,0.41999,79320.0,79314.0,0.012608]
[1744073262441,0.41999,79320.0,79319.0,0.264753]
[1744073262442,0.15524,79320.0,79319.0,0.264753]
[1744073262645,0.41999,79320.0,79314.0,0.012608]
[1744073262847,0.15524,79320.0,79318.0,0.002]
[1744073263172,0.15524,79320.0,79318.0,0.252146]
[1744073263390,0.001,79320.0,79318.0,0.264753]
[1744073263525,0.001,79320.0,79319.0,0.012607]
[1744073263739,0.001,79320.0,79319.0,0.060807]
[1744073263943,0.000168,79332.0,79330.0,0.012605]
[1744073264140,0.000168,79332.0,79331.0,0.012605]
[1744073264591,0.000168,79332.0,79320.0,0.67915]
[1744073264896,0.012605,79330.0,79324.0,0.012606]
[1744073265107,0.252114,79329.0,79324.0,0.012606]
[1744073265276,0.012606,79327.0,79320.0,0.4144]
[1744073265460,0.252139,79322.0,79320.0,0.4144]
[1744073265656,0.252133,79323.0,79320.0,0.4144]
[1744073265992,0.012606,79326.0,79321.0,0.25214]
[1744073266199,0.264728,79327.0,79321.0,0.25214]
[1744073266200,0.252122,79327.0,79322.0,0.012606]
[1744073266404,0.002,79327.0,79323.0,0.252133]
[1744073266549,0.16124,79330.0,79329.0,0.264719]
[1744073266751,0.16124,79330.0,79328.0,0.012605]
[1744073266752,0.006,79330.0,79328.0,0.012605]
[1744073266952,0.006,79330.0,79329.0,0.012605]
[1744073267163,0.006,79330.0,79329.0,0.397905]
[1744073267363,0.006,79330.0,79329.0,0.5272937]
[1744073267581,0.15524,79346.0,79345.0,0.264666]
[1744073267797,0.002,79349.0,79348.0,0.264656]
[1744073269176,0.002,79349.0,79348.0,0.358156]
[1744073269580,0.002,79349.0,79348.0,0.4875447]
[1744073269779,0.003,79349.0,79348.0,0.4885447]
[1744073270375,0.003,79349.0,79348.0,0.313856]
[1744073270575,0.002,79349.0,79348.0,0.313856]
[1744073271025,0.002,79349.0,79348.0,0.312856]
[1744073271348,0.266653,79349.0,79348.0,0.004]
[1744073271515,0.002,79349.0,79348.0,0.256054]
[1744073271721,0.002,79349.0,79348.0,0.268656]
[1744073272119,0.002,79349.0,79348.0,0.006]
[1744073272715,0.002,79349.0,79348.0,0.018602]
[1744073272912,0.002,79349.0,79348.0,0.006]
[1744073273706,0.014602,79349.0,79348.0,0.006]
[1744073274325,0.266653,79349.0,79348.0,0.006]
[1744073274550,0.85790115,79349.0,79348.0,0.006]
[1744073274765,1.00790115,79349.0,79348.0,0.002]
[1744073275172,1.00790115,79349.0,79337.0,0.264691]
[1744073275173,0.264672,79344.0,79337.0,0.264691]
[1744073275487,0.167203,79343.0,79337.0,0.264691]
[1744073275965,0.012604,79338.0,79331.0,0.264712]
[1744073276144,0.012604,79338.0,79332.0,0.012605]
[1744073276579,0.167203,79343.0,79334.0,0.012604]
[1744073276580,0.1546,79343.0,79334.0,0.012604]
[1744073276783,0.003,79349.0,79348.0,0.012602]
[1744073277125,0.003,79349.0,79346.0,0.252057]
[1744073277331,0.003,79349.0,79345.0,0.012603]
[1744073277668,0.003,79349.0,79335.0,0.1293887]
[1744073277669,0.012604,79338.0,79333.0,0.012605]
[1744073277870,0.012604,79338.0,79333.0,0.264706]
[1744073278072,0.264682,79340.0,79334.0,0.012604]
[1744073278237,0.264679,79341.0,79336.0,0.252091]
[1744073278437,0.264679,79341.0,79335.0,0.012604]
[1744073278752,0.002,79349.0,79348.0,0.012602]
[1744073279272,0.003,79349.0,79348.0,0.012602]
[1744073279852,0.002,79349.0,79348.0,0.012602]
[1744073280172,0.003,79349.0,79348.0,0.012602]
[1744073280777,0.002,79349.0,79348.0,0.012602]
[1744073281988,0.002,79349.0,79348.0,0.017602]
[1744073282568,0.002,79349.0,79348.0,0.016602]
[1744073282775,0.002,79349.0,79348.0,0.018602]
[1744073284726,0.002,79349.0,79348.0,0.0281179]
[1744073286890,0.002,79349.0,79348.0,0.62112682]
[1744073287135,0.002,79349.0,79348.0,0.6186066]
[1744073288006,0.002,79349.0,79348.0,0.4405179]